bitfinex-derivatives/quotes_BTCF0:USTF0_20210104
["timestamp","ask_amount","ask_price","bid_price","bid_amount"]
[1609753832019,1.35514236,31224.0,31167.0,0.1245]
[1609753834620,0.13632608,31183.0,31182.0,0.13632608]
[1609753834823,0.11919,31213.0,31182.0,0.13632608]
[1609753835222,0.11919,31213.0,31182.0,0.24217608]
[1609753835721,0.11919,31213.0,31182.0,0.10585]
[1609753836623,0.13632608,31183.0,31182.0,0.10585]
[1609753837526,0.11919,31213.0,31182.0,0.10585]
[1609753838727,0.13632608,31199.0,31194.0,0.13632608]
[1609753839930,0.13632608,31199.0,31182.0,2.26161364]
[1609753840129,0.13632608,31199.0,31186.0,2.15566816]
[1609753840629,0.13632608,31193.0,31186.0,2.15566816]
[1609753841632,1.0,31187.0,31186.0,2.15566816]
[1609753842735,1.13632608,31187.0,31186.0,2.15566816]
[1609753843435,0.13632608,31187.0,31186.0,2.15566816]
[1609753844235,0.23132608,31187.0,31186.0,2.15566816]
[1609753844835,0.23132608,31187.0,31186.0,0.37996816]
[1609753845038,0.23132608,31187.0,31179.0,2.35337978]
[1609753845735,0.23132608,31187.0,31167.0,0.1245]
[1609753845937,4.8516,31177.0,31167.0,0.1245]
[1609753846136,4.8516,31177.0,31159.0,2.35330306]
[1609753846436,4.8516,31177.0,31154.0,2.35361871]
[1609753846635,0.13632608,31155.0,31154.0,2.35361871]
[1609753847137,0.23282608,31155.0,31154.0,0.87481871]
[1609753847336,1.13632608,31155.0,31144.0,2.55008955]
[1609753847736,1.13632608,31155.0,31144.0,0.94738955]
[1609753848238,1.13632608,31155.0,31127.0,2.74834783]
[1609753848537,0.0961,31154.0,31127.0,2.74834783]
[1609753848738,0.13632608,31128.0,31127.0,2.74834783]
[1609753849140,0.13632608,31128.0,31094.0,2.739444]
[1609753849340,3.967,31119.0,31094.0,2.739444]
[1609753849539,1.13632608,31128.0,31094.0,2.739444]
[1609753849739,3.9397,31102.0,31094.0,2.739444]
[1609753849939,0.0973,31101.0,31094.0,2.739444]
[1609753850141,4.2163,31098.0,31094.0,2.739444]
[1609753850739,0.13632608,31095.0,31094.0,2.739444]
[1609753850941,0.13632608,31095.0,31088.0,3.13079314]
[1609753851140,0.0967,31094.0,31080.0,2.74198305]
[1609753851339,4.4088,31115.0,31080.0,2.74198305]
[1609753851539,1.0,31089.0,31080.0,2.74198305]
[1609753852241,0.15085,31089.0,31080.0,2.74198305]
[1609753852441,3.87105,31102.0,31080.0,2.74198305]
[1609753852642,4.4088,31115.0,31080.0,2.74198305]
[1609753852643,4.4088,31115.0,31101.0,0.13632608]
[1609753853040,4.4088,31115.0,31080.0,2.74198305]
[1609753853241,4.5039,31115.0,31080.0,2.74198305]
[1609753854542,0.0951,31115.0,31080.0,2.74198305]
[1609753854742,0.13632608,31081.0,31080.0,2.74198305]
[1609753854947,0.13632608,31081.0,31064.0,2.15509101]
[1609753855345,0.13632608,31081.0,31064.0,2.05869101]
[1609753855548,4.3594,31078.0,31064.0,2.05869101]
[1609753856245,0.12388,31107.0,31064.0,2.05869101]
[1609753856445,5.122,31090.0,31064.0,2.05869101]
[1609753856645,4.9263,31105.0,31064.0,2.05869101]
[1609753856845,4.9263,31105.0,31069.0,0.13632608]
[1609753857646,0.0955,31104.0,31069.0,0.13632608]
[1609753858848,0.0971,31103.0,31064.0,2.05869101]
[1609753859147,0.0961,31119.0,31064.0,2.05869101]
[1609753859148,0.07868641,33176.0,31064.0,2.05869101]
[1609753860351,0.1771,31248.0,31064.0,2.05869101]
[1609753860549,7.0690925,31166.0,31069.0,4.3934]
[1609753860750,1.0,31127.0,31111.0,1.0]
[1609753861350,0.0952,31126.0,31111.0,1.0]
[1609753862754,1.0,31194.0,31107.0,5.237]
[1609753862955,1.0,31194.0,31125.0,0.13632608]
[1609753863360,4.3941,31177.0,31125.0,0.13632608]
[1609753863957,0.1976,31165.0,31126.0,1.5]
[1609753864356,0.0009,31165.0,31126.0,1.5]
[1609753864757,0.0009,31165.0,31109.0,5.2004]
[1609753864758,1.0,31164.0,31149.0,1.0]
[1609753864957,1.0,31164.0,31150.0,1.5]
[1609753865158,1.0,31164.0,31157.0,0.13632608]
[1609753865659,1.0,31164.0,31158.0,1.5]
[1609753865858,1.0,31164.0,31149.0,1.0]
[1609753866058,0.095,31163.0,31149.0,1.0]
[1609753866760,0.095,31163.0,31117.0,4.4769]
[1609753866961,0.095,31163.0,31118.0,1.5]
[1609753867161,0.095,31163.0,31131.0,0.13632608]
[1609753867560,0.095,31163.0,31118.0,1.5]
[1609753869162,0.095,31163.0,31158.0,0.13632608]
[1609753869362,0.095,31163.0,31159.0,1.5]
[1609753870070,0.095,31163.0,31159.0,0.5]
[1609753871071,0.0009,31165.0,31159.0,0.5]
[1609753871267,0.0009,31165.0,31164.0,0.13632608]
[1609753871471,0.0009,31165.0,31113.0,2.11519997]
[1609753871680,0.0009,31165.0,31116.0,2.11437695]
[1609753872481,0.0009,31165.0,31115.0,4.9422]
[1609753873174,0.0975,31164.0,31115.0,4.9422]
[1609753874272,0.0961,31163.0,31090.0,2.1156425]
[1609753874472,4.4124,31158.0,31090.0,2.1156425]
[1609753874873,4.4124,31158.0,31085.0,2.11568896]
[1609753875272,4.4124,31158.0,31116.0,0.13632608]
[1609753875472,0.0961,31163.0,31116.0,0.13632608]
[1609753875873,0.10569,31164.0,31116.0,0.13632608]
[1609753876373,0.10569,31164.0,31116.0,0.87712608]
[1609753876574,0.0009,31165.0,31120.0,3.7679]
[1609753877074,0.0009,31165.0,31158.0,1.0]
[1609753877278,0.0009,31165.0,31162.0,0.13632608]
[1609753877876,0.0009,31165.0,31158.0,1.0]
[1609753878376,0.0976,31164.0,31158.0,1.0]
[1609753878977,0.0976,31164.0,31132.0,4.3884]
[1609753879178,0.0009,31165.0,31132.0,4.3884]
[1609753879377,1.0,31169.0,31163.0,0.13632608]
[1609753880980,1.0,31164.0,31163.0,0.13632608]
[1609753881179,1.0964,31164.0,31163.0,0.13632608]
[1609753881380,1.23272608,31164.0,31148.0,1.0]
[1609753881581,0.0956,31163.0,31148.0,1.0]
[1609753882186,1.13632608,31164.0,31148.0,1.0]
[1609753882883,0.13632608,31164.0,31132.0,4.3884]
[1609753883182,0.0962,31163.0,31132.0,4.3884]
[1609753883684,0.13632608,31164.0,31132.0,4.3884]
[1609753884383,5.0,33000.0,31132.0,4.3884]
[1609753884685,0.0961,31198.0,31132.0,4.3884]
[1609753885286,0.0961,31198.0,31171.0,0.13632608]
[1609753885686,0.0956,31310.0,31171.0,0.13632608]
[1609753886090,0.097,31216.0,31171.0,0.13632608]
[1609753886788,1.07702178,31232.0,31171.0,0.13632608]
[1609753886993,0.14286,31223.0,31171.0,0.13632608]
[1609753887388,0.14286,31223.0,31158.0,3.8708]
[1609753887789,0.0952,31198.0,31158.0,3.8708]
[1609753887989,0.0952,31198.0,31136.0,2.07537761]
[1609753888390,0.0952,31198.0,31133.0,2.07273213]
[1609753888890,0.0952,31198.0,31129.0,4.3269]
[1609753889191,0.5739,31196.0,31129.0,4.3269]
[1609753889390,0.13632608,31158.0,31156.0,0.13632608]
[1609753890192,0.0952,31157.0,31125.0,2.07346698]
[1609753890795,0.0952,31157.0,31123.0,2.07553272]
[1609753891195,0.13632608,31158.0,31123.0,2.07553272]
[1609753891397,0.13632608,31158.0,31155.0,0.13632608]
[1609753891597,0.03632608,31158.0,31155.0,0.13632608]
[1609753892099,0.0962,31157.0,31123.0,2.07553272]
[1609753892296,0.03632608,31158.0,31123.0,2.07553272]
[1609753893296,5.2556,31160.0,31123.0,2.07553272]
[1609753894602,0.0963,31159.0,31123.0,2.07553272]
[1609753895098,5.2556,31160.0,31123.0,2.07553272]
[1609753895299,0.13632608,31135.0,31123.0,2.07553272]
[1609753895498,4.04962608,31135.0,31123.0,2.07553272]
[1609753896600,4.04962608,31135.0,31123.0,1.93863272]
[1609753896800,4.04962608,31135.0,31110.0,2.83027189]
[1609753896801,4.04962608,31135.0,31106.0,2.27363509]
[1609753896999,0.13632608,31135.0,31106.0,2.27363509]
[1609753897201,4.5733,31126.0,31106.0,2.27363509]
[1609753897400,0.13632608,31107.0,31106.0,2.40996117]
[1609753897601,0.13632608,31107.0,31106.0,2.27363509]
[1609753897800,0.13632608,31107.0,31082.0,2.308295]
[1609753898401,0.0951,31115.0,31082.0,2.308295]
[1609753899212,0.0951,31115.0,31079.0,6.58715291]
[1609753899213,0.0951,31115.0,31086.0,2.31630302]
[1609753899413,0.0951,31115.0,31114.0,0.13632608]
[1609753899601,0.0972,31119.0,31114.0,0.13632608]
[1609753899810,0.0967,31123.0,31114.0,0.13632608]
[1609753900416,0.0967,31123.0,31122.0,1.0]
[1609753900615,0.0977,31127.0,31122.0,1.0]
[1609753901002,5.1544,31149.0,31122.0,1.0]
[1609753901417,0.13632608,31123.0,31122.0,1.0]
[1609753901619,0.13632608,31123.0,31122.0,0.8584]
[1609753901803,0.13632608,31123.0,31102.0,2.31247448]
[1609753902016,0.0961,31122.0,31102.0,2.31247448]
[1609753902214,0.13632608,31123.0,31102.0,2.31247448]
[1609753902803,0.13632608,31123.0,31086.0,2.32768678]
[1609753903203,0.0958,31122.0,31086.0,2.32768678]
[1609753903405,0.12056,31137.0,31081.0,2.32238931]
[1609753903605,0.12056,31137.0,31082.0,5.057]
[1609753903809,1.0,31105.0,31090.0,1.0]
[1609753905308,0.13632608,31101.0,31098.0,0.13632608]
[1609753905708,0.13632608,31101.0,31090.0,1.0]
[1609753905911,5.2448,31099.0,31080.0,2.32659167]
[1609753906109,0.13632608,31101.0,31080.0,2.32659167]
[1609753907111,0.0974,31100.0,31080.0,2.32659167]
[1609753907311,0.13632608,31081.0,31080.0,2.32659167]
[1609753907813,0.06711388,31103.0,31080.0,2.52200141]
[1609753908213,4.8328,31098.0,31080.0,2.52200141]
[1609753908412,4.8328,31098.0,31080.0,2.62837141]
[1609753908811,5.3779,31081.0,31080.0,2.62837141]
[1609753909214,4.3373,31081.0,31053.0,2.0898553]
[1609753909415,0.13632608,31054.0,31053.0,2.0898553]
[1609753909813,1.13632608,31054.0,31034.0,1.41629516]
[1609753910015,4.0333,31035.0,31034.0,1.41629516]
[1609753910215,4.0333,31035.0,31006.0,2.33076942]
[1609753910413,4.1309,31035.0,31006.0,2.33076942]
[1609753910614,12.61839112,31035.0,30868.0,4.27401061]
[1609753910816,4.4602,31001.0,30884.0,4.3303]
[1609753911414,0.13632608,30973.0,30884.0,4.3303]
[1609753911614,0.13632608,30973.0,30868.0,4.27401061]
[1609753911814,5.1701,30966.0,30871.0,4.6419]
[1609753913217,1.0,30969.0,30868.0,4.27401061]
[1609753913418,1.0,30969.0,30968.0,0.13632608]
[1609753913819,0.13632608,30986.0,30968.0,0.23919608]
[1609753914218,0.2789,30989.0,30968.0,0.23919608]
[1609753915423,0.0977,31004.0,30988.0,0.13632608]
[1609753915623,1.0,31007.0,30988.0,5.01372608]
[1609753915824,0.56884368,31015.0,30988.0,6.01372608]
[1609753917322,0.56884368,31015.0,31014.0,0.13632608]
[1609753917722,0.0963,31026.0,31014.0,0.13632608]
[1609753918122,0.0963,31026.0,30988.0,4.8774]
[1609753918322,0.5979,31056.0,30988.0,4.8774]
[1609753919024,4.6764592,31057.0,30945.0,0.1771]
[1609753919225,4.3177,31048.0,30959.0,4.7892]
[1609753919423,0.13632608,30998.0,30996.0,0.13632608]
[1609753919625,0.15823,31046.0,30996.0,0.25720608]
[1609753919827,1.0,31045.0,30959.0,4.7892]
[1609753920428,1.0,31045.0,30969.0,2.09379781]
[1609753920825,5.1582,31024.0,30969.0,2.09379781]
[1609753921028,5.29914,31024.0,30969.0,2.09379781]
[1609753921227,4.49194,31024.0,30969.0,2.09379781]
[1609753921438,0.13632608,30993.0,30987.0,0.13632608]
[1609753921626,0.15952,31015.0,30987.0,0.13632608]
[1609753921830,4.49194,31024.0,30987.0,0.13632608]
[1609753922526,4.351,31024.0,30987.0,0.13632608]
[1609753923429,0.13632608,31006.0,30969.0,2.09379781]
[1609753923629,0.13886,31037.0,30969.0,2.09379781]
[1609753923830,1.0,31020.0,31005.0,1.0]
[1609753925435,0.13632608,31006.0,31005.0,1.0]
[1609753925836,0.13632608,31006.0,30975.0,4.7457]
[1609753926035,0.13632608,31006.0,30934.0,4.1396]
[1609753926242,0.13632608,31006.0,30935.0,2.05726965]
[1609753927036,0.13632608,31006.0,30934.0,4.1396]
[1609753927534,0.279,31017.0,30934.0,4.1396]
[1609753928037,1.0,30974.0,30958.0,1.0]
[1609753930139,1.0,30959.0,30926.0,4.7644]
[1609753930338,1.0,30959.0,30913.0,2.05450836]
[1609753930339,1.0,30959.0,30916.0,2.05348215]
[1609753930941,1.0,30959.0,30901.0,2.06175906]
[1609753931441,0.13632608,30940.0,30901.0,2.06175906]
[1609753931841,0.13632608,30940.0,30903.0,2.06520828]
[1609753933241,0.13632608,30940.0,30903.0,1.15250828]
[1609753933443,0.13632608,30904.0,30903.0,1.15250828]
[1609753933643,0.12223,30943.0,30900.0,9.7251007]
[1609753933845,4.30087392,30911.0,30900.0,9.7251007]
[1609753934245,4.30087392,30911.0,30900.0,7.7185007]
[1609753934443,1.0,30937.0,30900.0,7.7185007]
[1609753935045,1.0,30937.0,30900.0,6.7185007]
[1609753935243,5.2776,30901.0,30900.0,6.7185007]
[1609753935445,5.41092608,30901.0,30900.0,6.7185007]
[1609753935844,5.41092608,30901.0,30900.0,5.9608007]
[1609753936244,5.41092608,30901.0,30900.0,4.9608007]
[1609753936444,11.41092608,30901.0,30900.0,4.9608007]
[1609753936645,6.13632608,30901.0,30900.0,4.9608007]
[1609753936843,6.13632608,30901.0,30900.0,3.4695007]
[1609753937045,6.13632608,30901.0,30900.0,3.3580007]
[1609753937245,6.13632608,30901.0,30900.0,3.0742007]
[1609753937446,6.13632608,30901.0,30900.0,1.7610007]
[1609753938045,6.13632608,30901.0,30900.0,1.5509007]
[1609753938247,6.13632608,30901.0,30900.0,1.3437007]
[1609753938448,6.13632608,30901.0,30900.0,0.1567007]
[1609753938647,6.13632608,30901.0,30900.0,0.1498007]
[1609753938648,0.13632608,30901.0,30900.0,0.1498007]
[1609753938847,0.13632608,30901.0,30845.0,0.2957]
[1609753939048,4.8037,30886.0,30845.0,0.2957]
[1609753939247,4.90156,30886.0,30845.0,0.2957]
[1609753939447,0.13632608,30846.0,30845.0,0.2957]
[1609753939847,3.94072608,30846.0,30845.0,0.2957]
[1609753940147,0.13632608,30846.0,30845.0,0.2957]
[1609753940348,0.12824,30870.0,30845.0,0.2957]
[1609753940948,0.5335,30869.0,30845.0,0.2957]
[1609753941551,0.13632608,30846.0,30845.0,0.2957]
[1609753941752,0.13632608,30846.0,30783.0,1.0]
[1609753941953,4.13167608,30846.0,30783.0,1.0]
[1609753942352,0.28957608,30846.0,30783.0,1.0]
[1609753942552,4.5597,30826.0,30783.0,1.0]
[1609753942953,4.5597,30826.0,30752.0,5.2477]
[1609753943155,0.12631,30827.0,30737.0,1.0]
[1609753943356,4.2161,30806.0,30737.0,1.0]
[1609753943555,0.11629,30806.0,30737.0,1.0]
[1609753943756,3.8795,30778.0,30737.0,1.0]
[1609753944255,0.12823,30782.0,30737.0,1.0]
[1609753944455,3.7819,30775.0,30737.0,1.0]
[1609753944655,0.12823,30782.0,30723.0,0.1771]
[1609753944855,5.0656,30769.0,30723.0,0.1771]
[1609753945056,4.46098751,30769.0,30723.0,0.1771]
[1609753945455,0.13632608,30744.0,30736.0,0.13632608]
[1609753945657,4.46098751,30769.0,30736.0,0.13632608]
[1609753945658,0.1443,30759.0,30736.0,0.13632608]
[1609753945857,0.708,30753.0,30736.0,0.13632608]
[1609753946058,0.708,30753.0,30745.0,0.13632608]
[1609753946258,0.708,30753.0,30736.0,0.13632608]
[1609753946859,1.0,30744.0,30736.0,0.13632608]
[1609753947060,3.3981,30742.0,30736.0,0.13632608]
[1609753947260,1.10681,30744.0,30736.0,0.13632608]
[1609753947460,1.10681,30744.0,30743.0,0.13632608]
[1609753948062,0.10681,30744.0,30743.0,0.13632608]
[1609753948364,0.03,30774.0,30743.0,1.13632608]
[1609753948563,0.03,30774.0,30743.0,4.78152608]
[1609753949164,3.9143,30823.0,30743.0,4.78152608]
[1609753949364,0.2782,30867.0,30743.0,4.78152608]
[1609753949365,0.2782,30867.0,30743.0,1.13632608]
[1609753949564,0.2782,30867.0,30762.0,4.5657]
[1609753950064,0.13632608,30830.0,30826.0,0.13632608]
[1609753950673,0.12713,30836.0,30826.0,0.13632608]
[1609753952071,0.2782,30867.0,30774.0,1.0]
[1609753952072,0.13632608,30860.0,30835.0,0.13632608]
[1609753952289,0.11875,30860.0,30835.0,0.13632608]
[1609753952670,0.11875,30860.0,30826.0,4.3994]
[1609753954083,0.11875,30860.0,30859.0,0.13632608]
[1609753954372,0.11875,30860.0,30826.0,4.3994]
[1609753954872,0.2782,30867.0,30826.0,4.3994]
[1609753955075,0.2782,30867.0,30826.0,4.3794]
[1609753956072,0.2782,30867.0,30866.0,0.13632608]
[1609753958075,0.13632608,30895.0,30866.0,0.13632608]
[1609753958275,4.4042,30942.0,30866.0,0.13632608]
[1609753959278,0.2944,30968.0,30866.0,0.13632608]
[1609753959476,0.2944,30968.0,30878.0,4.7832]
[1609753959879,0.6073,30967.0,30878.0,4.7832]
[1609753960079,0.13632608,30917.0,30906.0,0.13632608]
[1609753960980,0.13632608,30917.0,30880.0,4.4819]
[1609753961781,0.13632608,30917.0,30856.0,1.0]
[1609753962182,0.13632608,30886.0,30885.0,0.13632608]
[1609753962583,1.0,30889.0,30885.0,0.13632608]
[1609753962982,5.0,30904.0,30885.0,0.13632608]
[1609753963982,3.9173,30904.0,30885.0,0.13632608]
[1609753964182,0.1173,30920.0,30903.0,0.13632608]
[1609753964383,0.2917,30966.0,30887.0,4.22692608]
[1609753964582,0.2917,30966.0,30904.0,1.0]
[1609753966284,0.2917,30966.0,30914.0,5.0441]
[1609753967086,0.097,30965.0,30914.0,5.0441]
[1609753967592,0.2917,30966.0,30914.0,5.0441]
[1609753968192,0.2917,30966.0,30949.0,0.13632608]
[1609753968586,0.0972,30965.0,30949.0,0.13632608]
[1609753969186,0.2917,30966.0,30949.0,0.13632608]
[1609753969588,0.2917,30966.0,30949.0,0.85872608]
[1609753970086,0.2917,30966.0,30965.0,0.13632608]
[1609753970886,0.2749,31022.0,30965.0,0.13632608]
[1609753971187,4.5714,31031.0,30965.0,0.13632608]
[1609753971788,4.5714,31031.0,30960.0,4.9762]
[1609753971990,4.66869,31031.0,30960.0,4.9762]
[1609753972191,0.13632608,31003.0,31000.0,0.13632608]
[1609753972391,0.29030608,31003.0,31000.0,0.13632608]
[1609753972791,0.15398,31003.0,31000.0,0.13632608]
[1609753974094,0.15398,31003.0,30983.0,4.8741]
[1609753974293,0.13632608,30993.0,30983.0,4.8741]
[1609753974493,0.13632608,30993.0,30966.0,1.0]
[1609753975093,0.13632608,30993.0,30953.0,4.8377]
[1609753976194,0.13632608,30984.0,30979.0,0.13632608]
[1609753976394,0.15092,30995.0,30979.0,0.13632608]
[1609753976795,0.15092,30995.0,30953.0,4.8377]
[1609753977797,0.15092,30995.0,30924.0,1.0]
[1609753978596,0.92322,30995.0,30924.0,1.0]
[1609753979195,0.92322,30995.0,30919.0,4.0429]
[1609753980098,0.15092,30995.0,30887.0,1.0]
[1609753980297,0.13632608,30911.0,30887.0,4.953]
[1609753980496,5.2332,30985.0,30887.0,4.953]
[1609753980697,5.33424,30985.0,30887.0,4.953]
[1609753981097,5.33424,30985.0,30939.0,1.0]
[1609753981098,1.0,30954.0,30939.0,1.0]
[1609753981298,1.15754,30954.0,30939.0,1.0]
[1609753982399,0.13632608,30946.0,30941.0,0.13632608]
[1609753982599,0.1584,30946.0,30941.0,0.13632608]
[1609753982999,0.1584,30946.0,30939.0,1.0]
[1609753983200,0.1584,30946.0,30945.0,6.0]
[1609753983599,0.2833,30984.0,30945.0,6.0]
[1609753985201,0.2833,30984.0,30924.0,5.1122]
[1609753986303,0.2833,30984.0,30939.0,0.13632608]
[1609753986502,0.2833,30984.0,30924.0,5.1122]
[1609753987504,0.2833,30984.0,30898.0,1.0]
[1609753987706,5.3229,30974.0,30898.0,1.0]
[1609753987905,5.42685,30974.0,30898.0,1.0]
[1609753988304,5.42685,30974.0,30916.0,0.13632608]
[1609753988704,5.42685,30974.0,30898.0,1.0]
[1609753989105,5.42685,30974.0,30887.0,3.9804]
[1609753989106,1.0,30952.0,30937.0,1.0]
[1609753989306,1.15493,30952.0,30937.0,1.0]
[1609753990309,0.13632608,30938.0,30937.0,1.0]
[1609753990707,0.26001608,30938.0,30937.0,1.0]
[1609753991107,0.26001608,30938.0,30913.0,0.03]
[1609753992409,0.12369,30938.0,30913.0,0.03]
[1609753993311,0.12369,30938.0,30933.0,1.0]
[1609753993711,0.12369,30938.0,30933.0,0.0497]
[1609753994016,0.12369,30938.0,30913.0,0.03]
[1609753994411,0.13632608,30914.0,30913.0,0.03]
[1609753994612,0.24199608,30914.0,30913.0,0.03]
[1609753998618,0.24199608,30914.0,30885.0,4.1835]
[1609753999719,0.24199608,30914.0,30852.0,1.0]
[1609754000121,0.24199608,30914.0,30844.0,1.0]
[1609754000321,0.13632608,30872.0,30870.0,0.13632608]
[1609754001022,0.10607,30896.0,30870.0,0.13632608]
[1609754001224,0.10607,30896.0,30870.0,0.27291608]
[1609754002423,0.10607,30896.0,30883.0,0.13632608]
[1609754002626,0.10607,30896.0,30870.0,0.13659]
[1609754004924,0.09607,30896.0,30870.0,0.13659]
[1609754005625,0.13632608,30897.0,30870.0,0.13659]
[1609754006224,0.13632608,30897.0,30853.0,5.2637]
[1609754006427,0.10567,30914.0,30890.0,0.13632608]
[1609754006627,5.2051,30919.0,30890.0,0.13632608]
[1609754006826,5.2051,30919.0,30896.0,0.01]
[1609754008028,5.2051,30919.0,30913.0,1.0]
[1609754008429,1.0,30928.0,30913.0,1.0]
[1609754008430,0.13632608,30914.0,30913.0,1.0]
[1609754008629,0.27521608,30914.0,30913.0,1.0]
[1609754010029,0.27521608,30914.0,30896.0,0.01]
[1609754010431,0.13889,30914.0,30902.0,0.13632608]
[1609754010630,0.13889,30914.0,30896.0,0.01]
[1609754011834,0.13889,30914.0,30871.0,4.8982]
[1609754012031,5.3809,30911.0,30867.0,2.14431195]
[1609754012432,0.13632608,30875.0,30871.0,0.13632608]
[1609754012633,0.13943,30886.0,30871.0,0.13632608]
[1609754013033,0.13943,30886.0,30869.0,2.14552159]
[1609754013533,0.13943,30886.0,30866.0,0.11356]
[1609754014435,0.13943,30886.0,30881.0,0.13632608]
[1609754014635,0.13943,30886.0,30866.0,0.11356]
[1609754016337,0.27575608,30886.0,30879.0,0.13632608]
[1609754020143,0.27575608,30886.0,30885.0,1.0]
[1609754022047,0.27575608,30886.0,30870.0,0.13632608]
[1609754022448,0.13943,30886.0,30870.0,0.13632608]
[1609754022646,4.8208,30890.0,30870.0,0.13632608]
[1609754024151,4.8208,30890.0,30889.0,1.0]
[1609754024552,4.95712608,30890.0,30889.0,1.0]
[1609754024753,0.13632608,30890.0,30889.0,1.0]
[1609754025153,0.69892608,30890.0,30874.0,5.0]
[1609754025553,0.80414608,30890.0,30866.0,0.11356]
[1609754025754,0.80414608,30890.0,30858.0,2.15494276]
[1609754025955,0.10522,30890.0,30858.0,2.15494276]
[1609754026154,4.5648,30879.0,30858.0,2.15494276]
[1609754026354,4.68321,30879.0,30855.0,2.1553251]
[1609754026554,0.13632608,30856.0,30855.0,2.1553251]
[1609754027554,0.13632608,30856.0,30855.0,3.1553251]
[1609754029454,0.13632608,30856.0,30846.0,2.15359394]
[1609754030254,0.13632608,30856.0,30834.0,2.936719]
[1609754030255,0.14122,30860.0,30832.0,2.44272294]
[1609754030453,0.13632608,30847.0,30833.0,0.13632608]
[1609754031654,0.14122,30860.0,30833.0,2.28445937]
[1609754032055,0.12076,30869.0,30835.0,4.2977]
[1609754032255,0.11841,30879.0,30835.0,4.2977]
[1609754032455,3.902,30908.0,30835.0,4.2977]
[1609754032856,1.02719231,30927.0,30834.0,2.14785674]
[1609754033055,0.13632608,30896.0,30889.0,0.13632608]
[1609754033454,0.13632608,30896.0,30875.0,5.3859]
[1609754033857,0.28488608,30896.0,30875.0,5.3859]
[1609754034457,0.28488608,30896.0,30850.0,1.0]
[1609754034657,0.14856,30896.0,30850.0,1.0]
[1609754035057,0.13632608,30864.0,30859.0,0.13632608]
[1609754035459,0.13632608,30864.0,30835.0,0.2794]
[1609754036058,0.1067,30865.0,30835.0,0.2794]
[1609754036958,0.12701,30872.0,30835.0,0.2794]
[1609754037160,5.2399,30879.0,30871.0,0.13632608]
[1609754037360,0.13632608,30883.0,30871.0,0.13632608]
[1609754037561,0.14856,30896.0,30871.0,0.13632608]
[1609754038162,0.14856,30896.0,30873.0,5.2192]
[1609754038363,2.01752234,30941.0,30873.0,5.2192]
[1609754038563,0.2717,30926.0,30873.0,5.2192]
[1609754039163,0.13632608,30914.0,30908.0,0.13632608]
[1609754039365,0.29620608,30914.0,30908.0,0.13632608]
[1609754039564,0.29620608,30914.0,30893.0,3.7672]
[1609754040166,0.15988,30914.0,30893.0,3.7672]
[1609754040866,0.12351,30919.0,30893.0,3.92143]
[1609754041066,0.13632608,30917.0,30911.0,0.13632608]
[1609754041267,0.13632608,30917.0,30893.0,0.15423]
[1609754041468,0.13632608,30917.0,30916.0,6.0]
[1609754042568,0.12351,30919.0,30916.0,6.0]
[1609754043172,0.12351,30919.0,30918.0,0.13632608]
[1609754043370,0.2717,30926.0,30918.0,0.13632608]
[1609754043572,0.2717,30926.0,30918.0,1.13632608]
[1609754044976,4.2644,30957.0,30918.0,1.13632608]
[1609754045176,0.13632608,30947.0,30918.0,1.0]
[1609754045576,0.13632608,30947.0,30914.0,1.0]
[1609754045776,0.15096,30947.0,30914.0,1.0]
[1609754046378,4.634,30983.0,30914.0,1.0]
[1609754046977,4.634,30983.0,30914.0,1.13516]
[1609754047178,4.634,30983.0,30953.0,0.13632608]
[1609754047583,1.0,30990.0,30975.0,1.0]
[1609754049182,0.13632608,30976.0,30975.0,1.0]
[1609754049383,0.23380608,30976.0,30975.0,1.0]
[1609754049582,0.23380608,30976.0,30966.0,0.13632608]
[1609754049783,0.09748,30976.0,30966.0,0.13632608]
[1609754050383,0.13398,30979.0,30966.0,0.13632608]
[1609754051184,0.13632608,30976.0,30973.0,0.13632608]
[1609754052185,0.13632608,30976.0,30960.0,4.5436]
[1609754053186,0.13632608,30961.0,30960.0,4.5436]
[1609754053586,0.13398,30979.0,30960.0,4.5436]
[1609754053787,0.13398,30979.0,30960.0,4.66873]
[1609754054888,0.13398,30979.0,30960.0,4.5436]
[1609754055090,0.13632608,30962.0,30960.0,4.67992608]
[1609754055288,0.13398,30979.0,30960.0,4.67992608]
[1609754055489,1.9527515,31024.0,30960.0,4.67992608]
[1609754055689,1.9527515,31024.0,30960.0,0.13632608]
[1609754056088,1.9527515,31024.0,30960.0,4.55842608]
[1609754056490,2.22799964,31026.0,30960.0,4.55842608]
[1609754056891,0.2732,31026.0,30960.0,4.55842608]
[1609754057090,0.2732,31026.0,30972.0,0.13632608]
[1609754057694,1.0,31005.0,30990.0,1.0]
[1609754057891,1.15586,31005.0,30990.0,1.0]
[1609754058093,5.11784,30998.0,30974.0,5.0]
[1609754058293,0.15224,30998.0,30974.0,5.0]
[1609754058492,3.6438,30983.0,30956.0,1.0]
[1609754058693,3.78368,30983.0,30956.0,1.0]
[1609754059093,0.13632608,30957.0,30956.0,1.0]
[1609754060397,0.13632608,30957.0,30946.0,1.0]
[1609754060996,4.9049,30955.0,30946.0,1.0]
[1609754061196,0.13632608,30947.0,30946.0,1.0]
[1609754061397,0.29628608,30947.0,30946.0,1.0]
[1609754062402,0.29628608,30947.0,30944.0,1.0]
[1609754064403,0.29628608,30947.0,30945.0,1.0]
[1609754066422,0.29628608,30947.0,30946.0,1.0]
[1609754068606,0.15996,30947.0,30946.0,1.0]
[1609754069005,0.12854,30960.0,30946.0,1.0]
[1609754069205,0.13632608,30947.0,30946.0,1.0]
[1609754069806,0.12202,30950.0,30946.0,1.0]
[1609754069807,1.0,30975.0,30946.0,1.0]
[1609754070006,0.14198,30950.0,30946.0,1.0]
[1609754070407,0.14198,30950.0,30949.0,1.0]
[1609754071108,1.0,30989.0,30949.0,1.0]
[1609754071307,5.099,30985.0,30956.0,0.13632608]